fUSD/lending_fUSD_20240118
["ID","MTS","AMOUNT","RATE_DAILY","PERIOD"]
[312065757,1705594250426,-450.0,0.00028767,2]
[312065758,1705594250436,-500.0,0.00028767,2]
[312065759,1705594250446,-500.0,0.00028767,2]
[312065760,1705594250457,-500.0,0.00028767,2]
[312065761,1705594250468,-500.0,0.00028767,2]
[312065762,1705594250478,-500.0,0.00028767,2]
[312065763,1705594250489,-500.0,0.00028767,2]
[312065764,1705594250500,-500.0,0.00028767,2]
[312065765,1705594250510,-500.0,0.00028767,2]
[312065766,1705594250521,-500.0,0.00028767,2]
[312065767,1705594250532,-155.0,0.00028767,2]
[312065768,1705594250543,-4922.72186408,0.00028779,2]
[312065769,1705594250552,-1000.0,0.00028797,2]
[312065770,1705594250562,-8000.0,0.000288,2]
[312065771,1705594250571,-10889.49,0.00028822,2]
[312065772,1705594250581,-150.0,0.00028839,2]
[312065773,1705594250591,-500.0,0.00028858,7]
[312065774,1705594250601,-418.63,0.00028879,2]
[312065775,1705594250612,-418.63,0.00028879,2]
[312065776,1705594250623,-418.63,0.00028879,2]
[312065777,1705594250634,-418.63,0.00028879,2]
[312065778,1705594250644,-418.63,0.00028879,2]
[312065779,1705594250656,-418.63,0.00028879,2]
[312065780,1705594250666,-6349.39,0.00028879,2]
[312065781,1705594250678,-150.0,0.00028879,2]
[312065782,1705594250690,-150.0,0.00028879,2]
[312065783,1705594250701,-80353.89392628,0.0002888,2]
[312065784,1705594250711,-80353.89392626,0.0002888,2]
[312065785,1705594250722,-80353.89392626,0.0002888,2]
[312065786,1705594250733,-80353.89392626,0.0002888,2]
[312065787,1705594250744,-80353.89392626,0.0002888,2]
[312065788,1705594250754,-80353.89392626,0.0002888,2]
[312065789,1705594250763,-80353.89392626,0.0002888,2]
[312065790,1705594250774,-151.0,0.0002888,7]
[312065791,1705594250784,-151.0,0.0002888,7]
[312065792,1705594250794,-200.0,0.000289,2]
[312065793,1705594250807,-200.0,0.000289,10]
[312065794,1705594250817,-500.0,0.00028903,2]
[312065795,1705594250828,-500.0,0.00028917,2]
[312065796,1705594250839,-1885.53307975,0.00029,5]
[312065797,1705594250850,-2000.0,0.00029,2]
[312065798,1705594250861,-155.24545507,0.00029,2]
[312065799,1705594250871,-136099.3315,0.00029,2]
[312065800,1705594250883,-250.0,0.00029,2]
[312065801,1705594250895,-450.0,0.00029,2]
[312065802,1705594250906,-5605.28,0.00029009,2]
[312065803,1705594250917,-341.14,0.00029025,2]
[312065804,1705594250929,-150.0,0.00029041,2]
[312065805,1705594250940,-150.0,0.00029146,2]
[312065806,1705594250950,-150.0,0.000292,2]
[312065807,1705594250961,-200.0,0.00029205,2]
[312065808,1705594250973,-500.0,0.00029354,2]
[312065809,1705594250984,-150.0,0.00029415,2]
[312065810,1705594250995,-150.0,0.00029415,2]
[312065811,1705594251005,-972.06,0.00029416,2]
[312065812,1705594251015,-155.0,0.000295,3]
[312065813,1705594251025,-250.0,0.000295,2]
[312065814,1705594251036,-2409.536333,0.000295,2]
[312065815,1705594251046,-151.0,0.000295,7]
[312065816,1705594251056,-985.23,0.0002955,2]
[312065817,1705594251066,-150.0,0.0002956,2]
[312065818,1705594251076,-150.0,0.00029589,2]
[312065819,1705594251087,-500.0,0.00029589,7]
[312065820,1705594251097,-80353.89392626,0.00029608,2]
[312065821,1705594251108,-300.0,0.00029644,2]
[312065822,1705594251298,-150.0,0.00029644,2]
[312065823,1705594251308,-151.0,0.000297,2]
[312065824,1705594251319,-150.0,0.000297,2]
[312065825,1705594251328,-4922.72186408,0.00029759,2]
[312065826,1705594251339,-500.0,0.00029792,2]
[312065827,1705594251349,-175.50184765,0.000298,2]
[312065828,1705594251360,-1683.68517454,0.000298,2]
[312065829,1705594251369,-152609.2151085,0.000298,2]
[312065830,1705594251379,-200.0,0.000299,2]
[312065831,1705594251388,-150.0,0.00029951,2]
[312065832,1705594251399,-150.0,0.00029951,2]
[312065833,1705594251409,-8158.79078492,0.00029997,2]
[312065834,1705594251419,-418.63,0.00029999,2]
[312065835,1705594251430,-100000.0,0.0003,3]
[312065836,1705594251440,-582.53618936,0.0003,2]
[312065837,1705594251450,-875.33297676,0.0003,4]
[312065838,1705594251460,-9637.69139965,0.0003,2]
[312065839,1705594251471,-463.54889756,0.0003,4]
[312065840,1705594251481,-2552.9863992,0.0003,4]
[312065841,1705594251491,-155.0,0.0003,2]
[312065842,1705594251501,-446.17168784,0.0003,4]
[312065843,1705594251511,-240.0,0.0003,4]
[312065844,1705594251522,-451.74129919,0.0003,2]
[312065845,1705594251532,-693.90719044,0.0003,2]
[312065846,1705594251542,-2162.8756008,0.0003,4]
[312065847,1705594251551,-905.41355492,0.0003,4]
[312065848,1705594251561,-155.0,0.0003,4]
[312065849,1705594251572,-304.56207544,0.0003,4]
[312065850,1705594251582,-814.18421461,0.0003,4]
[312065851,1705594251593,-155.0,0.0003,2]
[312065852,1705594251603,-8839.75155897,0.0003,4]
[312065853,1705594251613,-442.65212814,0.0003,4]
[312065854,1705594251624,-72920.57629857,0.0003,4]
[312065855,1705594251634,-308857.21845126,0.0003,4]
[312065856,1705594251645,-19026.01005334,0.0003,4]
[312065857,1705594251655,-6860.89000775,0.0003,4]
[312065858,1705594251665,-91419.66489667,0.0003,2]
[312065859,1705594251676,-7000.0,0.0003,7]
[312065860,1705594251686,-2000.0,0.0003,2]
[312065861,1705594251697,-683.63999189,0.0003,4]
[312065862,1705594251708,-200.0,0.0003,2]
[312065863,1705594251718,-1969.19576626,0.0003,2]
[312065864,1705594251729,-770.13119971,0.0003,2]
[312065865,1705594251740,-155.0,0.0003,4]
[312065866,1705594251751,-2500.0,0.0003,2]
[312065867,1705594251762,-301.0,0.0003,2]
[312065868,1705594251774,-250.0,0.0003,2]
[312065869,1705594251784,-562.699038,0.0003,2]
[312065870,1705594251794,-750.0,0.0003,3]
[312065871,1705594251808,-157.8,0.0003,2]
[312065872,1705594251818,-157.8,0.0003,2]
[312065873,1705594251829,-157.8,0.0003,2]
[312065874,1705594251840,-157.8,0.0003,2]
[312065875,1705594251851,-157.8,0.0003,2]
[312065876,1705594251861,-500.0,0.0003,3]
[312065877,1705594251871,-200.0,0.0003,2]
[312065878,1705594251882,-3000.0,0.0003,2]
[312065879,1705594251891,-3000.0,0.0003,2]
[312065880,1705594251900,-3000.0,0.0003,2]
[312065881,1705594251909,-3000.0,0.0003,2]
[312065882,1705594251917,-3000.0,0.0003,2]
[312065883,1705594251926,-3000.0,0.0003,2]
[312065884,1705594251935,-1000.0,0.0003,2]
[312065885,1705594251944,-150.0,0.0003,2]
[312065886,1705594251953,-151.0,0.0003,7]
[312065887,1705594251962,-151.0,0.0003,7]
[312065888,1705594251971,-1000.0,0.0003,2]
[312065889,1705594251981,-155.51310058,0.0003,60]
[312065890,1705594251991,-150.0,0.0003,2]
[312065891,1705594252002,-152.24,0.0003,2]
[312065892,1705594252013,-152.24,0.0003,2]
[312065893,1705594252023,-152.24,0.0003,2]
[312065894,1705594252033,-152.24,0.0003,2]
[312065895,1705594252043,-152.24,0.0003,2]
[312065896,1705594252054,-152.24,0.0003,2]
[312065897,1705594252063,-152.24,0.0003,2]
[312065898,1705594252072,-450.0,0.0003002,3]
[312065899,1705594252082,-359.51135318,0.000301,4]
[312065900,1705594252091,-1000.0,0.000301,2]
[312065901,1705594252101,-8000.0,0.000301,2]
[312065902,1705594252111,-500.0,0.00030109,2]
[312065903,1705594252120,-200.0,0.00030109,2]
[312065905,1705594252129,-13559.1,0.00030137,2]
[312065906,1705594252139,-153.84,0.00030137,2]
[312065907,1705594252149,-150.0,0.00030137,2]
[312065908,1705594252159,-155.0,0.00030137,2]
[312065909,1705594252169,-239.22,0.00030142,2]
[312065910,1705594252180,-150.0,0.00030146,2]
[312065911,1705594252189,-150.0,0.000302,2]
[312065912,1705594252199,-1000.0,0.000302,2]
[312065913,1705594252209,-500.0,0.00030229,2]
[312065914,1705594252219,-6349.39,0.00030249,2]
[312065915,1705594252230,-150.0,0.00030281,2]
[312065916,1705594252239,-205.0,0.0003029,15]
[312065917,1705594252248,-1000.0,0.000303,2]
[312065918,1705594252258,-500.0,0.0003032,7]
[312065919,1705594252268,-150.0,0.00030487,2]
[312065920,1705594252278,-150.0,0.00030487,2]
[312065921,1705594252289,-703.788,0.00030489,2]
[312065922,1705594252298,-836.0,0.00030489,2]
[312065923,1705594252308,-151.89,0.0003049,2]
[312065924,1705594252318,-294.22,0.0003049,2]
[312065925,1705594252327,-609.34,0.0003049,2]
[312065926,1705594252336,-816.2,0.0003049,2]
[312065927,1705594252345,-2000.0,0.000305,2]
[312065928,1705594252355,-985.23,0.00030528,2]
[312065929,1705594252364,-150.82535441,0.00030566,2]
[312065930,1705594252374,-946.0,0.00030629,2]
[312065931,1705594252383,-1221.692,0.00030629,2]
[312065932,1705594252393,-369.197,0.00030629,2]
[312065933,1705594252403,-319.0,0.00030629,2]
[312065934,1705594252413,-876.0,0.00030629,2]
[312065935,1705594252423,-1138.0,0.00030629,2]
[312065936,1705594252434,-500.0,0.00030666,2]
[312065937,1705594252445,-150.0,0.00030685,2]
[312065938,1705594252455,-2905.0,0.00030689,2]
[312065939,1705594252466,-19705.0,0.00030689,2]
[312065940,1705594252477,-2273.0,0.00030689,2]
[312065941,1705594252486,-1029.0,0.00030689,2]
[312065942,1705594252494,-150.0,0.000307,3]
[312065943,1705594252504,-4922.72186408,0.00030739,2]
[312065944,1705594252513,-80353.89392626,0.00030754,2]
[312065945,1705594252522,-151.0,0.000308,2]
[312065946,1705594252531,-150.0,0.00030829,2]
[312065947,1705594252540,-100000.0,0.00031,3]
[312065948,1705594252549,-151.0,0.00031,7]
[312065949,1705594252558,-2000.0,0.00031,2]
[312065950,1705594252567,-256.2143402,0.00031,4]
[312065951,1705594252576,-200.0,0.00031,2]
[312065952,1705594252585,-562.699038,0.00031,2]
[312065953,1705594252594,-500.0,0.00031,3]
[312065954,1705594252605,-20000.0,0.00031,2]
[312065955,1705594252614,-150.0,0.00031002,2]
[312065956,1705594252622,-450.0,0.00031012,3]
[312065957,1705594252632,-200.0,0.00031014,2]
[312065958,1705594252641,-150.0,0.00031023,2]
[312065959,1705594252650,-150.0,0.00031023,2]
[312065960,1705594252659,-153.84,0.0003105,2]
[312065961,1705594252668,-500.0,0.0003105,7]
[312065962,1705594252680,-200.0,0.00031098,2]
[312065963,1705594252689,-500.0,0.00031103,2]
[312065964,1705594252698,-1000.0,0.00031141,2]
[312065965,1705594252708,-150.0,0.00031146,2]
[312065966,1705594252718,-150.0,0.000312,3]
[312065967,1705594252727,-1000.0,0.00031205,10]
[312065968,1705594252736,-500.0,0.00031205,7]
[312065969,1705594252745,-500.0,0.00031205,10]
[312065970,1705594252754,-150.0,0.00031233,2]
[312065971,1705594252763,-157.8,0.000313,2]
[312065972,1705594252772,-157.8,0.000313,2]
[312065973,1705594252781,-157.8,0.000313,2]
[312065974,1705594252790,-157.8,0.000313,2]
[312065975,1705594252801,-157.8,0.000313,2]
[312065976,1705594252810,-157.8,0.000313,2]
[312065977,1705594252819,-157.8,0.000313,2]
[312065978,1705594252828,-157.8,0.000313,2]
[312065979,1705594252838,-157.8,0.000313,2]
[312065980,1705594252848,-157.8,0.000313,2]
[312065981,1705594252857,-152.24,0.000313,2]
[312065982,1705594252866,-152.24,0.000313,2]
[312065983,1705594252875,-152.24,0.000313,2]
[312065984,1705594252885,-152.24,0.000313,2]
[312065985,1705594252895,-152.24,0.000313,2]
[312065986,1705594252904,-152.24,0.000313,2]
[312065987,1705594252913,-152.24,0.000313,2]
[312065988,1705594252922,-152.24,0.000313,2]
[312065989,1705594252931,-152.24,0.000313,2]
[312065990,1705594252941,-152.24,0.000313,2]
[312065991,1705594252950,-152.24,0.000313,2]
[312065992,1705594252959,-152.24,0.000313,2]
[312065993,1705594252969,-152.24,0.000313,2]
[312065994,1705594252979,-152.24,0.000313,2]
[312065995,1705594252988,-500.0,0.00031315,2]
[312065996,1705594252999,-972.06,0.00031435,2]
[312065997,1705594253009,-151.0,0.00031451,120]
[312065998,1705594253019,-50000.00000001,0.000315,5]
[312065999,1705594253029,-5000.0,0.000315,7]
[312066000,1705594253039,-1000.0,0.000315,2]
[312066001,1705594253048,-1000.0,0.000315,2]
[312066002,1705594253057,-2000.0,0.000315,2]
[312066003,1705594253067,-8000.0,0.000315,2]
[312066004,1705594253076,-985.23,0.00031507,2]
[312066005,1705594253085,-911.67,0.00031507,2]
[312066006,1705594253095,-155.0,0.00031507,2]
[312066007,1705594253105,-500.0,0.00031541,2]
[312066008,1705594253115,-150.0,0.00031559,2]
[312066009,1705594253124,-150.0,0.00031559,2]
[312066010,1705594253134,-6349.39,0.00031619,2]
[312066011,1705594253143,-295.91,0.00031644,2]
[312066012,1705594253153,-150.0,0.000317,4]
[312066013,1705594253162,-50571.45,0.000317,2]
[312066014,1705594253172,-4922.72186408,0.00031719,3]
[312066015,1705594253181,-150.0,0.00031723,2]
[312066016,1705594253191,-1000.0,0.00031753,10]
[312066017,1705594253200,-500.0,0.00031753,7]
[312066018,1705594253209,-500.0,0.00031753,10]
[312066019,1705594253218,-500.0,0.00031781,7]
[312066020,1705594253227,-150.0,0.00031781,2]
[312066022,1705594253237,-8158.79078492,0.00031797,2]
[312066023,1705594253246,-467484.695759,0.000318,3]
[312066024,1705594253256,-16120.8508888,0.00031878,2]
[312066025,1705594253265,-37683.6562532,0.00031878,2]
[312066026,1705594253274,-5000.0,0.0003189,2]
[312066027,1705594253283,-151.0,0.000319,2]
[312066028,1705594253293,-80353.89392626,0.000319,2]
[312066029,1705594253302,-200.0,0.00031918,2]
[312066030,1705594253311,-153.84,0.00031963,2]
[312066031,1705594253321,-500.0,0.00031978,2]
[312066032,1705594253330,-152.0,0.00031984,3]
[312066033,1705594253339,-100000.0,0.00032,3]
[312066034,1705594253348,-151.0,0.00032,7]
[312066035,1705594253357,-151.0,0.00032,7]
[312066036,1705594253366,-1490.0,0.00032,8]
[312066037,1705594253376,-297.93372864,0.00032,4]
[312066038,1705594253385,-13073.17767594,0.00032,4]
[312066039,1705594253394,-2000.0,0.00032,2]
[312066040,1705594253403,-1600.55778778,0.00032,4]
[312066041,1705594253413,-562.699038,0.00032,2]
[312066042,1705594253422,-800.0,0.00032,3]
[312066043,1705594253431,-72160.847999,0.00032,2]
[312066044,1705594253440,-500.0,0.00032,3]
[312066045,1705594253449,-20000.0,0.00032,2]
[312066046,1705594253459,-20000.0,0.00032,2]
[312066047,1705594253468,-40698.15051643,0.00032,2]
[312066048,1705594253478,-643.70064022,0.00032,2]
[312066049,1705594253487,-643.70064022,0.00032,2]
[312066050,1705594253496,-643.70064022,0.00032,2]
[312066051,1705594253504,-643.70064022,0.00032,2]
[312066052,1705594253513,-643.70064022,0.00032,2]
[312066053,1705594253522,-643.70064022,0.00032,2]
[312066054,1705594253531,-643.70064022,0.00032,2]
[312066055,1705594253540,-643.70064022,0.00032,2]
[312066056,1705594253549,-643.70064022,0.00032,2]
[312066057,1705594253559,-643.70064022,0.00032,2]
[312066058,1705594253568,-643.70064022,0.00032,2]
[312066059,1705594253578,-643.70064022,0.00032,2]
[312066060,1705594253587,-643.70064022,0.00032,2]
[312066061,1705594253596,-643.70064022,0.00032,2]
[312066062,1705594253606,-643.70064022,0.00032,2]
[312066063,1705594253615,-643.70064022,0.00032,2]
[312066064,1705594253624,-643.70064022,0.00032,2]
[312066065,1705594253635,-643.70064022,0.00032,2]
[312066066,1705594253645,-643.70064022,0.00032,2]
[312066067,1705594253655,-643.70064022,0.00032,2]
[312066068,1705594253665,-643.70064022,0.00032,2]
[312066069,1705594253674,-643.70064022,0.00032,2]
[312066070,1705594253684,-643.70064022,0.00032,2]
[312066071,1705594253694,-643.70064022,0.00032,2]
[312066072,1705594253703,-643.70064022,0.00032,2]
[312066073,1705594253712,-643.70064022,0.00032,2]
[312066074,1705594253722,-643.70064022,0.00032,2]
[312066075,1705594253731,-643.70064022,0.00032,2]
[312066076,1705594253741,-643.70064022,0.00032,2]
[312066077,1705594253751,-643.70064022,0.00032,2]
[312066078,1705594253761,-643.70064022,0.00032,2]
[312066079,1705594253773,-643.70064022,0.00032,2]
[312066080,1705594253783,-643.70064022,0.00032,2]
[312066081,1705594253793,-643.70064022,0.00032,2]
[312066082,1705594253807,-643.70064022,0.00032,2]
[312066083,1705594253816,-643.70064022,0.00032,2]
[312066084,1705594253826,-643.70064022,0.00032,2]
[312066085,1705594253836,-643.70064022,0.00032,2]
[312066086,1705594253847,-643.70064022,0.00032,2]
[312066087,1705594253857,-643.70064022,0.00032,2]
[312066088,1705594253866,-643.70064022,0.00032,2]
[312066089,1705594253875,-643.70064022,0.00032,2]
[312066090,1705594253885,-643.70064022,0.00032,2]
[312066091,1705594253895,-643.70064022,0.00032,2]
[312066092,1705594253905,-643.70064022,0.00032,2]
[312066093,1705594253915,-643.70064022,0.00032,2]
[312066094,1705594253924,-643.70064022,0.00032,2]
[312066095,1705594253934,-643.70064022,0.00032,2]
[312066096,1705594253944,-643.70064022,0.00032,2]
[312066097,1705594253955,-643.70064022,0.00032,2]
[312066098,1705594253964,-450.0,0.00032004,3]
[312066099,1705594253975,-205.0,0.00032037,17]
[312066100,1705594253985,-1000.0,0.00032074,7]
[312066101,1705594253995,-1000.0,0.00032074,7]
[312066102,1705594254005,-1000.0,0.00032074,7]
[312066103,1705594254014,-1000.0,0.00032074,7]
[312066104,1705594254023,-1000.0,0.00032074,7]
[312066105,1705594254032,-1000.0,0.00032074,7]
[312066106,1705594254041,-1000.0,0.00032074,7]
[312066107,1705594254050,-1000.0,0.00032074,7]
[312066108,1705594254059,-151.0,0.00032092,30]
[312066109,1705594254068,-150.0,0.00032095,2]
[312066110,1705594254077,-150.0,0.00032095,2]
[312066111,1705594254086,-200.0,0.000321,2]
[312066112,1705594254095,-150.0,0.00032146,2]
[312066113,1705594254103,-6845.91795514,0.0003217,2]
[312066114,1705594254112,-150.0,0.000322,4]
[312066115,1705594254122,-1000.0,0.00032244,7]
[312066116,1705594254132,-1000.0,0.00032244,7]
[312066117,1705594254142,-1000.0,0.00032244,7]
[312066118,1705594254151,-1000.0,0.00032244,7]
[312066119,1705594254160,-1000.0,0.00032244,7]
[312066120,1705594254169,-1000.0,0.00032244,7]
[312066121,1705594254178,-1000.0,0.00032244,7]
[312066122,1705594254187,-1000.0,0.00032244,7]
[312066123,1705594254196,-1000.0,0.00032244,7]
[312066124,1705594254206,-1000.0,0.00032244,7]
[312066125,1705594254215,-1000.0,0.00032244,7]
[312066126,1705594254225,-1000.0,0.00032244,7]
[312066127,1705594254234,-1000.0,0.00032244,7]
[312066128,1705594254243,-1000.0,0.00032244,7]
[312066129,1705594254253,-750.0,0.000323,2]
[312066130,1705594254262,-1000.0,0.00032301,10]
[312066131,1705594254271,-500.0,0.00032301,7]
[312066132,1705594254280,-500.0,0.00032301,10]
[312066133,1705594254289,-163.1747517,0.00032329,2]
[312066134,1705594254299,-239.22,0.00032406,2]
[312066135,1705594254308,-500.0,0.00032415,2]
[312066136,1705594254318,-150.0,0.00032444,2]
[312066137,1705594254327,-50000.0,0.00032454,7]
[312066138,1705594254336,-50000.0,0.00032454,7]
[312066139,1705594254345,-985.23,0.00032485,2]
[312066140,1705594254355,-22867.1841554,0.000325,4]
[312066141,1705594254364,-250.0,0.000325,5]
[312066142,1705594254373,-2000.0,0.000325,2]
[312066143,1705594254383,-1000.0,0.000325,2]
[312066144,1705594254393,-500.0,0.00032511,7]
[312066145,1705594254402,-500.0,0.00032521,2]
[312066146,1705594254411,-157.8,0.000326,2]
[312066147,1705594254420,-157.8,0.000326,2]
[312066148,1705594254430,-157.8,0.000326,2]
[312066149,1705594254439,-157.8,0.000326,2]
[312066150,1705594254448,-157.8,0.000326,2]
[312066151,1705594254457,-157.8,0.000326,2]
[312066152,1705594254466,-157.8,0.000326,2]
[312066153,1705594254476,-157.8,0.000326,2]
[312066154,1705594254485,-157.8,0.000326,2]
[312066155,1705594254494,-157.8,0.000326,2]
[312066156,1705594254504,-152.24,0.000326,2]
[312066157,1705594254513,-152.24,0.000326,2]
[312066158,1705594254523,-152.24,0.000326,2]
[312066159,1705594254532,-152.24,0.000326,2]
[312066160,1705594254541,-152.24,0.000326,2]
[312066161,1705594254550,-152.24,0.000326,2]
[312066162,1705594254560,-152.24,0.000326,2]
[312066163,1705594254570,-152.24,0.000326,2]
[312066164,1705594254579,-152.24,0.000326,2]
[312066165,1705594254588,-152.24,0.000326,2]
[312066166,1705594254597,-152.24,0.000326,2]
[312066167,1705594254606,-152.24,0.000326,2]
[312066168,1705594254616,-152.24,0.000326,2]
[312066169,1705594254625,-152.24,0.000326,2]
[312066170,1705594254634,-150.0,0.00032631,2]
[312066171,1705594254644,-150.0,0.00032631,2]
[312066172,1705594254654,-4922.72186408,0.00032699,4]
[312066173,1705594254662,-150.0,0.000327,5]
[312066174,1705594254672,-150.82535441,0.00032733,2]
[312066175,1705594254681,-151.0,0.00032747,7]
[312066176,1705594254691,-200.0,0.00032823,2]
[312066177,1705594254700,-1000.0,0.00032849,10]
[312066178,1705594254887,-500.0,0.00032849,7]
[312066179,1705594254897,-500.0,0.00032849,10]
[312066180,1705594254907,-500.0,0.00032852,2]
[312066181,1705594254916,-8158.79078492,0.00032874,2]
[312066182,1705594254925,-284.05865584,0.00032876,7]
[312066183,1705594254934,-179.68844602,0.00032876,7]
[312066184,1705594254944,-415.72997101,0.00032876,7]
[312066185,1705594254953,-500.0,0.00032876,7]
[312066186,1705594254962,-500.0,0.00032876,7]
[312066187,1705594254972,-500.0,0.00032876,7]
[312066188,1705594254981,-209.23834862,0.00032876,7]
[312066189,1705594254990,-299.4374114,0.00032876,7]
[312066190,1705594254999,-500.0,0.00032876,7]
[312066191,1705594255008,-500.0,0.00032876,7]
[312066192,1705594255017,-500.0,0.00032876,7]
[312066193,1705594255027,-500.0,0.00032876,7]
[312066194,1705594255036,-500.0,0.00032876,7]
[312066195,1705594255045,-500.0,0.00032876,7]
[312066196,1705594255054,-500.0,0.00032876,7]
[312066197,1705594255063,-500.0,0.00032876,7]
[312066198,1705594255072,-500.0,0.00032876,7]
[312066199,1705594255081,-500.0,0.00032876,7]
[312066200,1705594255090,-299.5066247,0.00032876,7]
[312066201,1705594255099,-500.0,0.00032876,7]
[312066202,1705594255109,-500.0,0.00032876,7]
[312066203,1705594255118,-500.0,0.00032876,7]
[312066204,1705594255127,-150.26112496,0.00032876,7]
[312066205,1705594255136,-500.0,0.00032876,7]
[312066206,1705594255145,-500.0,0.00032876,7]
[312066207,1705594255155,-373.78790032,0.00032876,7]
[312066208,1705594255164,-500.0,0.00032876,7]
[312066209,1705594255173,-500.0,0.00032876,7]
[312066210,1705594255182,-500.0,0.00032876,7]
[312066211,1705594255191,-500.0,0.00032876,7]
[312066212,1705594255200,-323.20847924,0.00032876,7]
[312066213,1705594255209,-500.0,0.00032876,7]
[312066214,1705594255219,-500.0,0.00032876,7]
[312066215,1705594255228,-500.0,0.00032876,7]
[312066216,1705594255237,-500.0,0.00032876,7]
[312066217,1705594255246,-500.0,0.00032876,7]
[312066218,1705594255255,-950.0,0.00032876,7]
[312066219,1705594255264,-292.86857528,0.00032876,2]
[312066220,1705594255273,-153.84,0.00032877,2]
[312066221,1705594255282,-150.1,0.00032877,2]
[312066222,1705594255291,-316.15,0.00032877,2]
[312066223,1705594255301,-506.16,0.00032877,2]
[312066224,1705594255310,-55190.0,0.00032877,2]
[312066225,1705594255319,-37028.51,0.00032877,2]
[312066226,1705594255328,-500.0,0.00032877,2]
[312066227,1705594255337,-1732.71,0.00032877,15]
[312066228,1705594255346,-155.0,0.00032877,2]
[312066229,1705594255355,-2000.0,0.000329,2]
[312066230,1705594255364,-215350.92302073,0.000329,7]
[312066231,1705594255373,-262.92713752,0.000329,2]
[312066232,1705594255382,-3000.0,0.000329,2]
[312066233,1705594255391,-500.0,0.000329,2]
[312066234,1705594255400,-150.5803871,0.000329,2]
[312066235,1705594255409,-200.0,0.000329,2]
[312066236,1705594255418,-441.0,0.000329,2]
[312066237,1705594255427,-1101.9075377,0.000329,2]
[312066238,1705594255436,-151.0,0.000329,7]
[312066239,1705594255445,-2772.0,0.000329,2]
[312066240,1705594255454,-807.70095246,0.000329,2]
[312066241,1705594255463,-4000.0,0.000329,2]
[312066242,1705594255473,-152.50598072,0.00032912,7]
[312066243,1705594255482,-299.97796228,0.00032914,7]
[312066244,1705594255492,-16529.0,0.00032918,2]
[312066245,1705594255501,-155.38660535,0.00032924,7]
[312066246,1705594255511,-154.92827381,0.0003293,7]
[312066247,1705594255520,-156.79579039,0.00032956,7]
[312066248,1705594255529,-155.38660535,0.00032959,7]
[312066249,1705594255538,-299.97796228,0.00032959,7]
[312066250,1705594255547,-154.92827381,0.00032972,7]
[312066251,1705594255556,-151.0,0.00032977,2]
[312066252,1705594255566,-2415.53150002,0.0003298,2]
[312066253,1705594255575,-6349.39,0.00032989,2]
[312066254,1705594255584,-156.79579039,0.00032995,7]
[312066255,1705594255593,-450.0,0.00032996,3]
[312066256,1705594255603,-100000.0,0.00033,3]
[312066257,1705594255613,-151.0,0.00033,7]
[312066258,1705594255623,-229.011302,0.00033,7]